bitfinex-derivatives/quotes_ETHF0:USTF0_20260131
["timestamp","ask_amount","ask_price","bid_price","bid_amount"]
[1769870847689,0.19782,2531.4,2528.9,3.95581427]
[1769870847885,0.19786,2530.9,2528.9,3.95581427]
[1769870848390,0.20157793,2530.9,2528.9,3.95911604]
[1769870848790,0.00371793,2530.9,2528.9,3.95911604]
[1769870848990,0.19793,2530.1,2528.9,3.95911604]
[1769870849886,2.21660973,2530.9,2528.9,3.95911604]
[1769870850089,0.19796,2529.7,2528.9,0.00330177]
[1769870850278,2.2128918,2530.6,2528.9,3.95911604]
[1769870850586,0.00371793,2530.9,2528.9,3.95911604]
[1769870850587,0.19791,2530.3,2528.9,3.95911604]
[1769870851684,2.20466571,2530.4,2528.9,0.00330177]
[1769870852291,0.19795,2529.8,2528.9,0.00330177]
[1769870852790,0.19795,2529.8,2528.9,3.95911604]
[1769870853193,0.19796,2529.6,2528.9,0.00330177]
[1769870854083,3.56,2530.2,2528.9,3.95911604]
[1769870854289,0.19794,2529.9,2528.9,0.00330177]
[1769870854482,2.22609763,2529.8,2528.5,3.95581427]
[1769870854687,2.22609763,2529.8,2527.4,3.95581427]
[1769870854888,2.22279586,2530.0,2527.4,3.95581427]
[1769870855087,0.19798,2529.4,2527.4,3.95581427]
[1769870855492,0.19798,2529.4,2527.4,3.95997336]
[1769870857294,0.19798,2529.4,2527.4,4.15810336]
[1769870857892,0.19793,2530.0,2527.6,3.63841949]
[1769870858496,0.19793,2530.0,2527.6,3.83653949]
[1769870858694,0.19794,2529.9,2527.6,3.83653949]
[1769870859294,0.19794,2529.9,2527.8,3.83651949]
[1769870859594,0.19794,2529.9,2527.4,0.00415909]
[1769870859595,0.19789,2530.6,2528.4,3.63841949]
[1769870859994,0.19789,2530.6,2528.7,3.63841949]
[1769870860998,0.19789,2530.5,2528.7,3.63841949]
[1769870861295,0.19792,2530.1,2528.7,3.63841949]
[1769870861796,0.19793,2530.0,2528.7,3.63841949]
[1769870862497,0.19794,2529.9,2528.7,3.63841949]
[1769870863290,2.27304942,2530.8,2528.7,3.63841949]
[1769870863492,0.1979,2530.4,2528.7,3.63841949]
[1769870864695,0.00371793,2530.9,2528.7,3.63841949]
[1769870865888,0.00371793,2530.9,2528.7,3.83644949]
[1769870866092,0.00371793,2530.9,2528.9,3.99388175]
[1769870866899,0.00371793,2530.9,2529.1,3.99388175]
[1769870867596,0.19781,2531.6,2528.3,3.561]
[1769870867597,0.19781,2531.6,2529.4,3.99388175]
[1769870867995,2.28795751,2531.4,2529.4,3.99388175]
[1769870868395,0.19788,2530.6,2529.4,3.99876041]
[1769870868997,0.1979,2530.4,2529.4,0.00487866]
[1769870869193,0.1979,2530.4,2529.4,3.99876041]
[1769870869699,0.1979,2530.4,2529.4,0.00487866]
[1769870870199,0.1979,2530.4,2529.4,3.99876041]
[1769870870398,0.19786,2530.9,2529.4,3.99876041]
[1769870870701,0.19788,2530.6,2529.4,3.99876041]
[1769870870896,0.00363185,2531.4,2529.4,3.99876041]
[1769870870897,6.51574266,2530.7,2529.4,8.66e-06]
[1769870871101,0.19793,2530.0,2529.0,3.99388175]
[1769870871302,0.19794,2529.9,2529.0,3.99388175]
[1769870871600,2.29305407,2529.7,2526.1,3.99388175]
[1769870871799,2.16790409,2528.9,2526.1,3.99388175]
[1769870872003,3.973,2528.7,2526.1,0.00323961]
[1769870872301,0.19818,2526.9,2526.1,0.00323961]
[1769870872505,3.56,2526.8,2525.4,4.00846523]
[1769870872700,3.56,2526.8,2524.5,3.99388175]
[1769870872701,0.04748347,2526.2,2524.5,3.99388175]
[1769870872897,0.24571347,2526.2,2524.5,3.99388175]
[1769870873205,0.24571347,2526.2,2524.7,3.99388175]
[1769870873405,0.24571347,2526.2,2524.7,3.99682383]
[1769870873704,0.24571347,2526.2,2524.7,15.44056918]
[1769870874800,0.04748347,2526.2,2524.7,0.00294208]
[1769870875399,0.31574877,2526.5,2524.7,0.00294208]
[1769870875600,0.19829,2525.4,2524.7,0.00294208]
[1769870876702,40.8,2526.7,2525.3,4.00846523]
[1769870876904,0.2029239,2526.9,2525.3,4.00846523]
[1769870877094,0.2029239,2526.9,2525.0,3.9544]
[1769870877095,0.2029239,2526.9,2525.7,4.00846523]
[1769870877296,0.2029239,2526.9,2525.8,4.00846523]
[1769870877495,0.2029239,2526.9,2525.9,4.00846523]
[1769870877699,0.2029239,2526.9,2526.1,4.00846523]
[1769870879002,0.0047539,2526.9,2524.7,0.00294208]
[1769870879298,0.0047539,2526.9,2525.4,3.9544]
[1769870879506,0.0047539,2526.9,2524.8,11.44374535]
[1769870879706,0.19823,2526.2,2524.8,11.44374535]
[1769870880100,0.19823,2526.2,2524.9,3.9544]
[1769870880497,0.19823,2526.2,2525.0,11.44374535]
[1769870880698,0.19823,2526.2,2524.8,11.44374535]
[1769870881108,0.19823,2526.2,2525.0,3.99388175]
[1769870881304,0.19824,2526.0,2525.0,3.99388175]
[1769870881609,0.19824,2526.0,2525.2,3.99388175]
[1769870881812,0.19824,2526.0,2524.9,19.3920271]
[1769870882311,0.19824,2526.0,2525.0,7.94828175]
[1769870882907,0.19824,2526.0,2525.2,3.99388175]
[1769870883108,0.19824,2526.0,2525.4,3.99388175]
[1769870883309,0.19824,2526.0,2525.5,3.99388175]
[1769870883509,0.19824,2526.0,2525.6,3.99388175]
[1769870883806,0.19824,2526.0,2524.7,0.00294208]
[1769870884003,0.19824,2526.0,2524.9,3.90236319]
[1769870884405,0.19828,2525.5,2524.7,0.00294208]
[1769870884597,40.8,2526.8,2524.7,11.44668743]
[1769870884598,0.19824,2526.1,2524.7,11.44668743]
[1769870884797,3.564,2526.4,2524.7,11.44668743]
[1769870884798,0.88509338,2526.3,2524.7,11.44668743]
[1769870885002,41.68509338,2526.8,2524.7,11.44668743]
[1769870885206,0.19827,2525.8,2524.7,11.44668743]
[1769870885598,44.365,2526.8,2524.7,11.44668743]
[1769870885599,0.0047539,2526.9,2524.8,3.99388175]
[1769870885800,1.08811728,2526.9,2525.4,3.59635175]
[1769870885999,0.19824,2526.1,2524.7,0.00294208]
[1769870886201,0.19827,2525.7,2524.9,11.44374535]
[1769870886508,0.19829,2525.4,2524.7,0.00294208]
[1769870886704,40.8,2526.7,2524.8,14.94658854]
[1769870886911,42.23884793,2526.7,2524.8,11.04422535]
[1769870887105,0.19824,2526.1,2524.8,11.04422535]
[1769870887311,0.0047539,2526.9,2525.1,3.90236319]
[1769870887613,31.32541464,2529.2,2524.8,11.04422535]
[1769870887614,0.19814,2527.3,2525.9,3.90236319]
[1769870887811,3.565,2528.4,2525.5,3.72058733]
[1769870887812,0.19809,2528.1,2525.5,3.72058733]
[1769870888008,2.323,2528.3,2525.5,3.72058733]
[1769870888009,1.43884793,2528.2,2525.7,3.72058733]
[1769870888208,0.19811,2527.7,2526.2,3.72058733]
[1769870888405,0.19814,2527.4,2526.2,3.72058733]
[1769870888610,0.20283361,2527.4,2526.4,3.72058733]
[1769870889108,0.20283361,2527.4,2527.0,3.72058733]
[1769870889309,0.20283361,2527.4,2527.0,3.72423398]
[1769870889511,2.323,2528.3,2527.3,3.90236319]
[1769870889707,0.1981,2527.9,2527.1,3.72058733]
[1769870889907,2.323,2528.3,2527.1,3.32408733]
[1769870890108,2.323,2528.3,2527.0,0.00364665]
[1769870890109,4.19486565,2528.3,2527.0,0.00364665]
[1769870890311,14.20775131,2530.9,2527.0,0.00364665]
[1769870890312,0.19801,2529.1,2528.2,3.90236319]
[1769870890515,0.19793,2530.0,2528.3,11.04422535]
[1769870890809,1.89046576,2530.3,2527.3,0.19814]
[1769870890810,1.89046576,2530.3,2527.7,3.90236319]
[1769870891310,0.19795,2529.8,2528.4,3.90236319]
[1769870891511,0.20252366,2529.8,2527.5,11.04422535]
[1769870891816,0.20252366,2529.8,2527.9,3.72058733]
[1769870892012,0.20252366,2529.8,2528.1,3.72058733]
[1769870892219,0.20252366,2529.8,2527.5,11.04422535]
[1769870892220,0.20252366,2529.8,2528.3,3.72058733]
[1769870892611,0.20252366,2529.8,2528.5,3.72058733]
[1769870892612,0.19798,2529.4,2528.5,3.72058733]
[1769870892917,0.19799,2529.3,2527.7,3.72058733]
[1769870893115,0.19799,2529.3,2527.9,3.72058733]
[1769870893318,0.19799,2529.3,2528.1,3.72058733]
[1769870893720,0.19799,2529.3,2528.2,14.76481268]
[1769870894217,0.19804,2528.6,2527.0,0.00364665]
[1769870894419,0.19804,2528.6,2527.1,11.04422535]
[1769870894619,0.19804,2528.6,2527.3,3.90236319]
[1769870894821,0.19804,2528.6,2527.4,11.04422535]
[1769870895121,0.19804,2528.6,2527.6,3.90236319]
[1769870895322,0.19804,2528.6,2527.7,3.90236319]
[1769870895524,0.19804,2528.6,2527.6,3.90236319]
[1769870895715,0.19804,2528.6,2527.8,3.90236319]
[1769870895916,0.19804,2528.6,2527.7,3.90236319]
[1769870896222,0.19804,2528.6,2527.9,7.62295052]
[1769870896523,0.19804,2528.6,2527.9,3.72058733]
[1769870896819,0.19804,2528.6,2528.0,14.94658854]
[1769870897316,0.19804,2528.6,2527.9,3.72058733]
[1769870897518,0.19804,2528.6,2527.9,14.76481268]
[1769870897723,0.19804,2528.6,2527.9,17.40512935]
[1769870897917,0.19804,2528.6,2528.0,3.72058733]
[1769870898120,6.406,2529.2,2527.9,11.04422535]
[1769870898121,6.406,2529.2,2528.3,6.360904]
[1769870898317,6.406,2529.2,2528.3,3.72058733]
[1769870898518,6.60399,2529.2,2528.4,11.04422535]
[1769870898718,0.19799,2529.2,2528.5,3.72058733]
[1769870898918,0.00457366,2529.8,2529.1,3.72058733]
[1769870899120,0.20252366,2529.8,2529.1,3.72392058]
[1769870899321,0.20252366,2529.8,2529.1,16.6150626]
[1769870899523,0.20252366,2529.8,2529.2,2.64031667]
[1769870899724,2.98837807,2529.8,2526.8,0.19818]
[1769870899918,2.98837807,2529.8,2527.5,2.02006667]
[1769870900224,2.98837807,2529.8,2527.0,11.04422535]
[1769870900419,0.198,2529.1,2527.6,2.02006667]
[1769870900626,0.00457366,2529.8,2527.1,0.19816]
[1769870900823,0.00457366,2529.8,2527.2,11.04422535]
[1769870901023,0.00457366,2529.8,2528.2,2.02006667]
[1769870901422,0.00457366,2529.8,2528.8,3.72058733]
[1769870901627,0.00457366,2529.8,2529.2,3.72058733]
[1769870901830,0.19791,2530.3,2529.5,2.02006667]
[1769870902029,3.973,2531.8,2529.4,3.72058733]
[1769870902030,0.19785,2531.1,2529.4,3.72058733]
[1769870902218,0.19787,2530.8,2529.6,3.72058733]
[1769870902422,3.43466345,2530.6,2529.1,3.72058733]
[1769870902619,0.19793,2530.1,2529.1,3.72058733]
[1769870902928,0.19795,2529.7,2529.1,0.00395947]
[1769870903527,0.19795,2529.7,2529.3,3.72058733]
[1769870903725,0.00400311,2530.1,2529.3,3.72058733]
[1769870903927,0.1979,2530.4,2529.8,3.72058733]
[1769870904128,2.51177743,2532.0,2529.8,3.72058733]
[1769870904129,0.19784,2531.2,2529.8,3.72058733]
[1769870904322,0.19784,2531.2,2529.1,0.00395947]
[1769870904323,0.19784,2531.2,2530.3,3.72058733]
[1769870904522,3.563,2531.7,2529.1,0.00395947]
[1769870904523,0.19785,2531.1,2529.8,2.01606356]
[1769870904727,0.19785,2531.1,2529.9,3.72058733]
[1769870904929,0.00353964,2531.1,2529.9,3.72058733]
[1769870905335,0.00353964,2531.1,2530.1,3.72058733]
[1769870905838,0.00353964,2531.1,2530.5,3.72058733]
[1769870906134,0.19781,2531.5,2530.5,3.72058733]
[1769870906337,0.19781,2531.5,2530.7,3.72058733]
[1769870906523,0.19781,2531.5,2529.1,0.00395947]
[1769870906524,0.19781,2531.5,2530.8,3.72058733]
[1769870907027,0.19781,2531.5,2531.1,3.72058733]
[1769870907223,0.19777,2532.1,2531.2,3.72058733]
[1769870907625,0.30969171,2532.4,2531.2,3.72058733]
[1769870908233,0.31277228,2532.4,2531.2,3.72058733]
[1769870908439,0.00308057,2532.4,2531.2,3.72058733]
[1769870908732,3.48890072,2532.4,2531.3,10.58346535]
[1769870908934,0.19778,2531.9,2531.1,10.58821264]
[1769870909138,0.19778,2531.9,2531.1,3.72533462]
[1769870909436,0.19778,2531.9,2531.1,0.00474729]
[1769870909831,3.48582015,2531.9,2530.3,3.72058733]
[1769870910032,0.19776,2532.2,2530.3,3.72058733]
[1769870910342,0.19776,2532.2,2530.5,3.72058733]
[1769870910837,0.19776,2532.2,2531.0,3.72058733]
[1769870911238,0.19776,2532.2,2530.5,0.00388513]
[1769870911239,0.19776,2532.2,2531.9,3.72058733]
[1769870911430,0.00308057,2532.4,2531.9,3.72058733]
[1769870911631,3.562,2532.7,2532.1,3.72058733]
[1769870912340,8.09539464,2534.9,2532.3,3.72058733]
[1769870912341,7.10980928,2533.8,2532.3,3.72058733]
[1769870912637,0.19768,2533.2,2532.4,14.30405268]
[1769870913042,0.19768,2533.2,2532.5,3.72058733]
[1769870913737,0.19772,2532.7,2530.2,0.19791]
[1769870913942,0.19772,2532.7,2530.5,2.01606356]
[1769870914138,3.75156446,2533.2,2531.0,2.01606356]
[1769870914436,0.00335436,2533.8,2530.4,10.58346535]
[1769870914437,0.19776,2532.2,2530.4,10.58346535]
[1769870914637,0.19779,2531.8,2530.4,10.58346535]
[1769870914840,0.1978,2531.7,2530.4,10.58723292]
[1769870915036,0.00449272,2531.8,2530.4,10.58723292]
[1769870915734,0.00449272,2531.8,2530.9,3.72058733]
[1769870916045,0.19778,2532.0,2531.2,3.72058733]
[1769870916235,0.19778,2531.9,2530.5,3.72058733]
[1769870916534,3.75156446,2532.5,2530.4,10.58723292]
[1769870916535,0.1978,2531.7,2530.8,3.72058733]
[1769870916936,0.19781,2531.6,2530.8,14.30405268]
[1769870918047,0.19781,2531.6,2530.8,16.32011624]
[1769870918437,0.19781,2531.6,2531.0,2.01606356]
[1769870918640,0.19781,2531.6,2531.0,5.63247482]
[1769870918837,3.90870119,2532.9,2531.5,5.63247482]
[1769870919037,0.19775,2532.3,2531.5,3.61641126]
[1769870919338,48.26770119,2533.1,2531.7,5.63247482]
[1769870919645,48.26770119,2533.1,2530.4,0.00376757]
[1769870919646,3.90870119,2532.7,2530.9,3.61641126]
[1769870919849,0.1978,2531.7,2530.6,3.61641126]
[1769870920140,3.90870119,2532.1,2530.6,3.61641126]
[1769870920346,3.90870119,2532.1,2530.7,10.58346535]
[1769870921044,3.90870119,2532.1,2530.8,4.00448084]
[1769870921242,3.90870119,2532.1,2530.7,10.58346535]
[1769870921243,0.19777,2532.1,2530.9,4.00448084]
[1769870921441,3.66605139,2532.6,2531.2,4.00448084]
[1769870921442,0.19777,2532.0,2531.2,4.00448084]
[1769870921845,0.19777,2532.0,2531.3,12.18146891]
[1769870922140,6.375,2532.8,2531.7,4.00448084]
[1769870922339,0.19776,2532.3,2531.7,4.00448084]
[1769870922543,3.66605139,2533.0,2532.0,1.17125356]
[1769870922745,0.19776,2532.3,2532.0,4.00448084]
[1769870922943,0.19776,2532.3,2530.4,0.00376757]
[1769870923144,0.19776,2532.3,2531.4,1.17125356]
[1769870923447,3.66605139,2532.2,2530.8,1.17125356]
[1769870923643,0.19782,2531.5,2530.5,10.58346535]
[1769870923840,0.19783,2531.3,2530.5,10.58346535]
[1769870924036,6.47177743,2532.9,2530.5,10.58346535]
[1769870924037,0.19787,2530.8,2530.5,8.93789929]
[1769870924234,0.19787,2530.8,2530.4,0.00376757]
[1769870924440,0.19787,2530.8,2529.0,0.19801]
[1769870924647,0.19787,2530.8,2529.1,8.49304929]
[1769870924840,0.19787,2530.8,2529.2,4.00448084]
[1769870925336,0.20109874,2530.8,2529.4,4.00448084]
[1769870925844,0.20109874,2530.8,2529.6,4.00448084]
[1769870926341,5.878,2531.6,2529.8,4.00448084]
[1769870926751,0.19788,2530.7,2529.9,8.49304929]
[1769870926945,0.19788,2530.6,2529.9,8.49304929]
[1769870927342,0.1979,2530.4,2529.9,8.03710917]
[1769870927647,0.19794,2529.9,2529.2,0.00479267]
[1769870927848,0.19794,2529.9,2529.4,6.77148917]
[1769870928049,0.19794,2529.9,2529.5,4.00448084]
[1769870928247,0.00278609,2530.6,2529.5,4.00448084]
[1769870928439,0.00278609,2530.6,2529.7,4.00448084]
[1769870928953,0.20067609,2530.6,2529.8,10.37668001]
[1769870929149,40.99782,2531.4,2529.9,4.00448084]
[1769870929342,0.19782,2531.4,2529.9,4.00448084]
[1769870930356,0.20157307,2531.4,2529.9,4.00448084]
[1769870931050,3.559,2532.1,2530.1,4.00448084]
[1769870931352,3.66605139,2532.6,2530.1,4.00448084]
[1769870931554,0.19778,2532.0,2530.3,4.00448084]
[1769870931954,0.19778,2531.9,2530.5,4.00448084]
[1769870932153,0.20107628,2531.9,2530.5,4.00448084]
[1769870932453,0.20107628,2531.9,2530.7,4.00448084]
[1769870932645,0.20107628,2531.9,2530.1,2.319]
[1769870932646,0.20107628,2531.9,2530.9,4.00448084]
[1769870933046,0.20107628,2531.9,2531.0,6.37219917]
[1769870933246,0.19782,2531.5,2531.0,5.95238724]
[1769870933446,0.19782,2531.5,2531.0,5.35347417]
[1769870933648,0.19782,2531.5,2531.0,9.35795501]
[1769870933948,0.00329628,2531.9,2531.2,4.00448084]
[1769870934345,0.00329628,2531.9,2531.4,4.00448084]
[1769870934547,0.19776,2532.2,2531.4,4.00448084]
[1769870934742,3.559,2532.9,2531.6,4.00448084]
[1769870934946,3.66605139,2532.8,2531.7,4.94958153]
[1769870935156,3.66605139,2532.8,2531.2,4.00448084]
[1769870935352,2.14257132,2533.4,2531.4,4.00448084]
[1769870935549,0.19773,2532.7,2531.4,4.00448084]
[1769870935753,0.19773,2532.7,2531.6,4.00448084]
[1769870936147,0.19773,2532.7,2531.8,4.00448084]
[1769870936552,0.19773,2532.7,2532.0,4.00448084]
[1769870937258,0.00328468,2533.4,2532.2,4.00448084]
[1769870937460,0.20095468,2533.4,2532.2,4.00448084]
[1769870937756,0.19768,2533.2,2532.2,4.00448084]
[1769870939148,0.19768,2533.2,2532.4,4.00448084]
[1769870939351,3.56128468,2533.4,2532.4,4.00448084]
[1769870939352,0.00328468,2533.4,2532.4,4.00448084]
[1769870939654,0.00328468,2533.4,2531.2,4.94958153]
[1769870939655,3.66933607,2533.4,2531.9,4.00448084]
[1769870939859,3.66605139,2533.2,2531.9,4.00448084]
[1769870940048,3.66605139,2533.2,2532.0,4.12215153]
[1769870940255,0.19775,2532.4,2531.4,4.00448084]
[1769870940549,0.19776,2532.2,2531.4,4.00448084]
[1769870940748,0.19776,2532.2,2531.5,3.72135153]
[1769870940957,2.797,2532.4,2531.3,4.00448084]
[1769870941154,6.355,2532.9,2531.3,4.00448084]
[1769870941354,0.19772,2532.7,2531.5,4.00448084]
[1769870941549,0.00328468,2533.4,2531.5,4.00448084]
[1769870941550,2.797,2533.0,2531.5,4.00448084]
[1769870941758,0.00328468,2533.4,2531.7,4.00448084]
[1769870941961,0.19771,2532.9,2531.7,4.00448084]
[1769870942253,0.19776,2532.2,2531.7,3.31632153]
[1769870942458,3.66605139,2532.9,2531.7,7.32080237]
[1769870942661,6.353,2532.8,2531.7,7.32080237]
[1769870942857,0.19777,2532.2,2531.8,4.00448084]
[1769870943057,0.1977,2533.0,2531.8,4.00448084]
[1769870943256,6.46105139,2532.9,2531.9,2.91931153]
[1769870943458,3.66605139,2532.8,2531.4,4.00448084]
[1769870943662,0.19777,2532.1,2531.4,4.00448084]
[1769870944760,0.19777,2532.1,2531.0,0.00340264]
[1769870944761,3.557,2532.0,2531.5,2.48474153]
[1769870944959,0.19785,2531.1,2530.2,4.00448084]
[1769870945354,0.19785,2531.1,2530.3,5.88870237]
[1769870945555,6.54785,2531.1,2530.4,4.00448084]
[1769870946055,3.66605139,2532.0,2530.6,4.00448084]
[1769870946259,10.01605139,2531.9,2530.6,4.00448084]
[1769870946459,10.01605139,2531.9,2530.7,1.88422153]
[1769870946758,0.19781,2531.6,2530.7,1.88422153]
[1769870946963,10.01605139,2531.9,2530.7,1.88422153]
[1769870947167,0.19784,2531.2,2530.7,1.05913153]
[1769870947366,0.19787,2530.9,2530.4,0.0038859]
[1769870947666,6.349,2530.9,2529.8,3.83626807]
[1769870947850,0.19787,2530.8,2529.8,3.83626807]
[1769870948058,2.791,2531.1,2529.8,3.83626807]
[1769870948366,3.97363204,2531.6,2529.8,3.83626807]
[1769870948555,6.349,2531.5,2529.8,3.8404479]
[1769870948861,6.348,2531.4,2529.8,3.8404479]
[1769870949061,0.00409679,2531.6,2529.8,3.8404479]
[1769870949265,6.348,2531.5,2529.8,3.8404479]
[1769870949468,0.19784,2531.1,2529.8,3.8404479]
[1769870949765,10.31753525,2531.5,2529.8,3.8404479]
[1769870949766,0.19786,2531.0,2529.8,3.8404479]
[1769870950062,3.96953525,2531.4,2529.8,3.8404479]
[1769870950264,6.348,2531.5,2529.8,9.83e-06]
[1769870950265,0.19791,2530.3,2529.8,9.83e-06]
[1769870950453,0.19792,2530.2,2529.4,3.83626807]
[1769870950659,0.19793,2530.1,2528.4,3.83626807]
[1769870950854,0.19796,2529.7,2528.4,3.83626807]
[1769870951362,0.19796,2529.6,2528.4,3.84029869]
[1769870951560,0.19797,2529.5,2528.4,3.84029869]
[1769870951761,0.00320985,2529.7,2528.4,3.84029869]
[1769870951959,0.19799,2529.2,2528.4,3.84029869]
[1769870952667,0.198,2529.1,2528.4,3.84029869]
[1769870953067,6.543,2529.1,2528.4,3.84029869]
[1769870953265,6.543,2529.1,2528.4,0.00403062]
[1769870953663,6.543,2529.1,2528.0,3.83626807]
[1769870954358,0.198,2529.1,2528.0,3.83626807]
[1769870954556,0.198,2529.1,2528.0,3.8399185]
[1769870955559,6.346,2529.4,2528.0,3.8399185]
[1769870955560,0.19802,2528.9,2528.0,3.8399185]
[1769870956762,0.19797,2529.6,2528.0,3.8399185]
[1769870957459,0.19798,2529.4,2528.0,3.8399185]
[1769870958069,6.344,2529.5,2528.0,3.8399185]
[1769870958267,0.198,2529.1,2528.0,3.8399185]
[1769870958758,0.19803,2528.7,2528.0,3.8399185]
[1769870959259,3.96953525,2529.6,2528.0,3.8399185]
[1769870959260,2.782,2529.1,2528.0,3.8399185]
[1769870959465,6.342,2529.1,2528.0,3.8399185]
[1769870959665,0.19802,2528.9,2528.0,3.8399185]
[1769870959866,6.342,2529.1,2528.0,3.8399185]
[1769870960063,0.19804,2528.6,2528.0,3.8399185]
[1769870960372,0.19807,2528.3,2526.7,3.559]
[1769870960564,3.96953525,2528.6,2526.0,0.19824]
[1769870960765,3.96953525,2528.3,2525.7,5.88]
[1769870960971,0.1981,2527.8,2525.7,5.88]
[1769870961169,0.20184244,2527.8,2526.1,1.02984078]
[1769870961865,0.19814,2527.4,2526.1,1.02984078]
[1769870962371,3.96953525,2527.3,2526.1,0.0040554]
[1769870962568,0.19817,2527.0,2526.1,3.84032347]
[1769870963367,3.96953525,2527.6,2526.1,3.84032347]
[1769870963368,6.339,2527.6,2526.1,3.84032347]
[1769870963567,0.19816,2527.1,2526.1,3.84032347]
[1769870965866,0.00374244,2527.8,2526.1,3.84032347]
[1769870966366,24.935,2529.1,2526.1,3.84032347]
[1769870966367,0.19804,2528.6,2526.1,4.03855347]
[1769870966870,0.19804,2528.6,2526.3,3.83626807]
[1769870967165,0.19804,2528.6,2526.3,4.03448807]
[1769870967374,0.20250969,2528.6,2526.5,3.83626807]
[1769870969365,0.20250969,2528.6,2526.7,3.83626807]
[1769870970665,0.00446969,2528.6,2526.7,3.83626807]
[1769870970871,0.19806,2528.4,2526.7,3.83626807]
[1769870971067,0.00446969,2528.6,2526.7,3.83626807]
[1769870971270,0.00446969,2528.6,2526.7,4.03445807]
[1769870972167,0.19801,2529.0,2527.0,3.83626807]
[1769870972374,0.19801,2529.0,2527.2,3.83626807]
[1769870972573,0.19795,2529.7,2527.2,3.83626807]
[1769870972775,0.19795,2529.7,2527.5,3.83626807]
[1769870972965,0.19795,2529.7,2527.7,3.83626807]
[1769870973164,0.20288035,2529.7,2527.7,3.83626807]
[1769870973567,3.9744656,2529.7,2527.7,3.83626807]
[1769870973768,0.19802,2528.9,2527.7,3.83626807]
[1769870973968,3.96953525,2528.9,2526.6,3.83626807]
[1769870974765,0.19809,2528.0,2526.6,3.83626807]
[1769870976674,3.96953525,2528.0,2526.6,3.83626807]
[1769870976874,0.19812,2527.6,2526.6,3.83626807]
[1769870977072,0.2030436,2527.6,2526.6,3.83626807]
[1769870977579,0.19814,2527.3,2526.2,3.62058879]
[1769870978276,0.0049236,2527.6,2526.2,3.62058879]
[1769870978874,0.19809,2528.0,2526.2,3.62058879]
[1769870980080,0.20154221,2528.0,2526.2,3.62058879]
[1769870981978,3.94325193,2527.8,2526.2,3.62058879]
[1769870982179,0.19813,2527.5,2526.2,3.62058879]
[1769870983478,0.19817,2527.0,2526.2,3.62058879]
[1769870983682,0.19817,2527.0,2526.1,0.0040554]
[1769870983983,0.19817,2526.9,2526.1,0.0040554]
[1769870984375,0.19818,2526.8,2526.1,0.0040554]
[1769870984683,0.19818,2526.8,2524.5,2.322]
[1769870984684,4.14158193,2524.9,2523.5,3.80549681]
[1769870985180,0.19833,2524.9,2523.5,3.80549681]
[1769870985576,3.94788137,2524.9,2523.5,0.00393096]
[1769870985784,3.94788137,2524.9,2523.5,3.80942777]
[1769870986172,4.14161193,2524.6,2523.5,0.00393096]
[1769870986377,0.19836,2524.6,2523.5,3.80942777]
[1769870986773,3.94325193,2524.7,2523.5,0.00393096]
[1769870986972,0.19839,2524.1,2522.7,3.80549681]
[1769870987179,4.14164193,2524.1,2522.7,3.80549681]
[1769870987378,3.76239,2524.1,2522.7,3.80549681]
[1769870987584,0.19839,2524.1,2522.7,3.80549681]
[1769870987887,0.19839,2524.1,2522.7,3.80955421]
[1769870988773,3.564,2524.2,2522.7,3.80955421]
[1769870989179,0.19835,2524.7,2522.7,3.80955421]
[1769870989381,4.14160193,2524.7,2522.7,3.80955421]
[1769870990283,0.19835,2524.7,2522.7,3.80955421]
[1769870990690,3.94325193,2524.7,2522.7,3.80955421]
[1769870990983,0.00462944,2524.9,2522.7,3.80955421]
[1769870991384,0.19836,2524.5,2522.7,3.80955421]
[1769870991893,0.00462944,2524.9,2522.9,3.80549681]
[1769870992185,0.00462944,2524.9,2522.9,4.00398681]
[1769870992389,0.00462944,2524.9,2523.1,3.80549681]
[1769870992687,0.20295944,2524.9,2523.1,3.80549681]
[1769870993279,0.20295944,2524.9,2522.7,0.0040574]
[1769870993280,4.14166193,2524.0,2522.7,3.80955421]
[1769870993483,0.19842,2523.8,2522.7,3.80955421]
[1769870994384,3.94325193,2524.0,2522.7,3.80955421]
[1769870994582,4.14171193,2523.3,2521.9,3.80549681]
[1769870995091,3.94325193,2523.9,2521.9,3.80549681]
[1769870995480,3.94325193,2523.9,2521.9,3.81026676]
[1769870996088,0.19848,2523.1,2521.9,3.81026676]
[1769870996294,0.20129635,2523.1,2521.9,3.81026676]
[1769870996593,4.14175193,2522.8,2521.5,3.80549681]
[1769870996785,0.1985,2522.8,2521.5,3.80549681]
[1769870997799,0.1985,2522.8,2521.5,3.81053768]
[1769871000292,0.00281635,2523.1,2521.5,3.81053768]
[1769871000491,0.20128635,2523.1,2521.5,3.81053768]
[1769871001194,0.19839,2524.1,2521.9,3.80549681]
[1769871001494,0.19834,2524.8,2522.4,3.80549681]
[1769871001696,0.19835,2524.7,2522.6,3.80549681]
[1769871002191,0.20171274,2524.7,2522.6,3.80549681]
[1769871002589,4.14161193,2524.6,2522.6,3.80549681]
[1769871002793,0.00336274,2524.7,2522.6,3.80549681]
[1769871002794,3.94325193,2524.2,2522.6,3.80549681]
[1769871003095,0.19843,2523.6,2522.6,3.80549681]
[1769871003294,3.568,2524.1,2521.8,3.80549681]
[1769871003499,3.94325193,2526.1,2523.1,3.80549681]
[1769871003708,3.94325193,2526.1,2523.3,3.80549681]
[1769871003709,0.19828,2525.6,2523.3,3.80549681]
[1769871004000,4.14153193,2525.6,2523.5,3.80549681]
[1769871004301,0.19821,2526.4,2523.9,3.80549681]
[1769871004498,3.94325193,2526.6,2523.9,3.80549681]
[1769871004707,0.19827,2525.7,2523.9,3.80927432]
[1769871005500,3.94325193,2526.3,2523.9,3.80927432]
[1769871005701,0.00358279,2526.4,2523.9,4.00767432]
[1769871005897,0.00358279,2526.4,2524.4,3.80549681]
[1769871006097,0.00358279,2526.4,2524.6,3.80549681]
[1769871007406,4.19354088,2526.1,2524.6,3.80549681]
[1769871008505,0.19824,2526.1,2524.6,3.80549681]
[1769871008699,0.19825,2526.0,2524.6,3.80549681]
[1769871009002,0.00358279,2526.4,2524.6,3.80549681]
[1769871009998,0.19818,2526.8,2524.6,3.80549681]
[1769871010805,3.99530088,2526.7,2524.6,3.80549681]
[1769871011201,0.19824,2526.1,2524.6,3.80549681]
[1769871011401,4.19354088,2526.1,2524.6,3.80549681]
[1769871011601,4.19356088,2525.9,2524.6,3.80549681]
[1769871011903,0.19826,2525.9,2524.6,3.80549681]
[1769871012707,4.00008619,2526.7,2524.6,3.80549681]
[1769871012903,0.19822,2526.4,2524.6,3.80549681]